fUSD/lending_fUSD_20260121
["ID","MTS","AMOUNT","RATE_DAILY","PERIOD"]
[402946181,1769007045950,-500.0,0.00017982,2]
[402946182,1769007045960,-500.0,0.00017989,2]
[402946183,1769007045970,-159.74,0.00017989,2]
[402946184,1769007045979,-886.97448148,0.0001799,2]
[402946185,1769007045988,-886.97448148,0.0001799,2]
[402946186,1769007045998,-151.0,0.00017997,2]
[402946187,1769007046007,-150.0,0.00017999,2]
[402946188,1769007046017,-252.48903335,0.00017999,2]
[402946189,1769007046026,-500.0,0.00017999,2]
[402946190,1769007046037,-500.0,0.00017999,2]
[402946191,1769007046046,-500.0,0.00017999,2]
[402946192,1769007046056,-500.0,0.00017999,2]
[402946193,1769007046065,-500.0,0.00017999,2]
[402946194,1769007046074,-500.0,0.00017999,2]
[402946195,1769007046084,-502.32638867,0.00017999,2]
[402946196,1769007046093,-300.0,0.00017999,2]
[402946197,1769007046103,-464.56149289,0.00017999,2]
[402946198,1769007046112,-500.0,0.00017999,2]
[402946199,1769007046121,-500.0,0.00017999,2]
[402946200,1769007046131,-500.0,0.00017999,2]
[402946201,1769007046140,-500.0,0.00017999,2]
[402946202,1769007046149,-500.0,0.00017999,2]
[402946203,1769007046158,-500.0,0.00017999,2]
[402946204,1769007046168,-500.0,0.00017999,2]
[402946205,1769007046177,-500.0,0.00017999,2]
[402946206,1769007046187,-300.0,0.00017999,2]
[402946207,1769007046196,-300.0,0.00017999,2]
[402946208,1769007046205,-366.59852564,0.00017999,2]
[402946209,1769007046215,-585.5583357,0.00017999,2]
[402946210,1769007046224,-300.0,0.00017999,2]
[402946211,1769007046233,-300.0,0.00017999,2]
[402946212,1769007046243,-300.0,0.00017999,2]
[402946213,1769007046252,-500.0,0.00017999,2]
[402946214,1769007046262,-2642081.92123559,0.00018,2]
[402946220,1769007046703,-306.23050185,0.00018,2]
[402946222,1769007046715,-268.10168539,0.00018,2]
[402946268,1769007048169,-238.29330122,0.00016628,2]
[402946269,1769007048179,-151.0,0.0001689,2]
[402946270,1769007048188,-26947.40344293,0.00018,2]
[402946271,1769007048200,-572.5572628,0.00018,2]
[402946272,1769007048211,-451.8540548,0.00018,2]
[402946273,1769007048223,-2762.91089874,0.00018,2]
[402946274,1769007048258,-2000000.0,0.00018,2]
[402946275,1769007048270,-2418.0,0.00018,2]
[402946276,1769007048281,-6907161.54862376,0.00018,2]
[402946277,1769007048291,-176275.29398471,0.00018,2]
[402946278,1769007048301,-12230.49640393,0.00018,2]
[402946279,1769007048312,-1033.229,0.00018,2]
[402946280,1769007048338,-4483.84343981,0.00018,2]
[402946281,1769007049384,-1.7e-07,0.00018,2]
[402946282,1769007049396,-9571.77246531,0.00018,2]
[402946283,1769007049521,-33841.96497514,0.00018,2]
[402946284,1769007049998,310.58730005,0.00016341,2]
[402946285,1769007050917,-1006.103824,0.00016786,2]
[402946286,1769007050927,-54268.52075342,0.00018,2]
[402946287,1769007050938,-1619027.99999987,0.00018,2]
[402946288,1769007051010,-270.37340776,0.00018,2]
[402946289,1769007051352,-2259.32536499,0.00018,2]
[402946290,1769007051364,-14102.11927565,0.00018,2]
[402946291,1769007052732,-59309.49968328,0.00018,2]
[402946292,1769007052757,-1680.99014283,0.00018,2]
[402946293,1769007053215,-1475.90934462,0.00018,2]
[402946294,1769007053249,-442636.82556595,0.00018,2]
[402946295,1769007053282,-3931.6616991,0.00018,2]
[402946296,1769007123518,500.0,0.00016345,2]
[402946297,1769007144140,9189.42269995,0.00016404,2]
[402946298,1769007144172,10000.01,0.00016404,2]
[402946299,1769007144199,10000.01,0.00016404,2]
[402946300,1769007144226,10000.01,0.00016404,2]
[402946301,1769007144251,10000.01,0.00016404,2]
[402946302,1769007144277,10000.01,0.00016404,2]
[402946303,1769007144302,10000.01,0.00016404,2]
[402946304,1769007144328,10000.01,0.00016404,2]
[402946305,1769007144354,10000.01,0.00016404,2]
[402946306,1769007144380,10000.01,0.00016404,2]
[402946307,1769007144408,900810.48730005,0.00016404,2]
[402946308,1769007157716,500.0,0.00016,2]
[402946309,1769007167905,500.0,0.000163,3]
[402946310,1769007170348,5533.0,0.00015,5]
[402946311,1769007172686,3473.4287,0.00016404,2]
[402946312,1769007251836,493.5813,0.00016345,2]
[402946313,1769007251859,6.4187,0.00016345,2]
[402946314,1769007272864,10000.01,0.00016404,2]
[402946315,1769007272890,10000.01,0.00016404,2]
[402946316,1769007272916,10000.01,0.00016404,2]
[402946317,1769007272942,10000.01,0.00016404,2]
[402946318,1769007272966,10000.01,0.00016404,2]
[402946319,1769007272989,10000.01,0.00016404,2]
[402946320,1769007273014,10000.01,0.00016404,2]
[402946321,1769007273040,10000.01,0.00016404,2]
[402946322,1769007273065,10000.01,0.00016404,2]
[402946323,1769007273090,10000.01,0.00016404,2]
[402946324,1769007273113,376231.61160173,0.00016404,2]
[402946325,1769007273136,523768.28839827,0.00016404,2]
[402946326,1769007305828,-791.16977493,0.00016415,2]
[402946327,1769007310933,-157.68395652,0.00016415,2]
[402946328,1769007314203,-317.24211769,0.00016415,2]
[402946329,1769007318642,-328.76131478,0.00016415,2]
[402946330,1769007322336,-251.01652615,0.00016415,2]
[402946331,1769007326055,-282.26228161,0.00016415,2]
[402946332,1769007328236,-241.89086637,0.00016415,2]
[402946333,1769007360186,4167.57,0.00016369,2]
[402946334,1769007370165,208.19814596,0.00016345,2]
[402946335,1769007378781,317.242118,0.00016332,2]
[402946336,1769007401080,171.6437,0.00016345,2]
[402946337,1769007422170,5135.35603604,0.00016402,2]
[402946338,1769007422201,10000.01,0.00016402,2]
[402946339,1769007422233,10000.01,0.00016402,2]
[402946340,1769007422264,10000.01,0.00016402,2]
[402946341,1769007422295,10000.01,0.00016402,2]
[402946342,1769007422325,10000.01,0.00016402,2]
[402946343,1769007422355,10000.01,0.00016402,2]
[402946344,1769007422382,10000.01,0.00016402,2]
[402946345,1769007422413,10000.01,0.00016402,2]
[402946346,1769007422442,10000.01,0.00016402,2]
[402946347,1769007422713,579419.24633315,0.00016402,2]
[402946348,1769007422742,325445.30763081,0.00016402,2]
[402946349,1769007501804,166.66,0.00015426,2]
[402946350,1769007502008,166.66,0.00015751,2]
[402946351,1769007502189,166.66,0.00016076,2]
[402946352,1769007502408,166.66,0.000164,2]
[402946353,1769007532368,990.26,0.00015795,2]
[402946354,1769007551360,500.0,0.00016315,2]
[402946355,1769007577055,9500.01,0.00016402,2]
[402946356,1769007577087,10000.01,0.00016402,2]
[402946357,1769007577124,10000.01,0.00016402,2]
[402946358,1769007577158,10000.01,0.00016402,2]
[402946359,1769007577189,10000.01,0.00016402,2]
[402946360,1769007577221,10000.01,0.00016402,2]
[402946361,1769007577258,10000.01,0.00016402,2]
[402946362,1769007577292,10000.01,0.00016402,2]
[402946363,1769007577327,10000.01,0.00016402,2]
[402946364,1769007577361,10000.01,0.00016402,2]
[402946365,1769007577392,791367.15763777,0.00016402,2]
[402946366,1769007577419,109132.74236223,0.00016402,2]
[402946367,1769007583603,468.94,0.00015918,2]
[402946368,1769007608617,229.48825,7.945e-05,2]
[402946369,1769007626442,-500.0,0.00016415,2]
[402946370,1769007626473,-500.0,0.00016415,2]
[402946371,1769007626502,-500.0,0.00016415,2]
[402946372,1769007626533,-500.0,0.00016415,2]
[402946373,1769007626562,-809.59071295,0.00016415,2]
[402946374,1769007626592,-300.0,0.00016422,2]
[402946375,1769007626623,-195.0,0.00016429,2]
[402946376,1769007626652,-600.0,0.00016429,2]
[402946377,1769007626681,-150.0,0.00016445,2]
[402946378,1769007626711,-500.0,0.00016445,2]
[402946379,1769007626740,-150.0,0.00016445,2]
[402946380,1769007632407,-1200.0,0.0001645,2]
[402946381,1769007632437,-3494.7125,0.00016451,2]
[402946382,1769007638678,-610.585,0.00016451,2]
[402946383,1769007638710,-300.0,0.00016492,2]
[402946384,1769007638740,-200.0,0.00016493,2]
[402946385,1769007638771,-151.0,0.00016493,2]
[402946386,1769007638804,-151.0,0.00016493,2]
[402946387,1769007638837,-151.0,0.00016493,2]
[402946388,1769007638869,-151.0,0.00016493,2]
[402946389,1769007638901,-151.0,0.00016493,2]
[402946390,1769007638935,-151.0,0.00016493,2]
[402946391,1769007638971,-196.78678975,0.00016493,2]
[402946392,1769007639004,-500.0,0.00016493,2]
[402946393,1769007639038,-150.0,0.000165,2]
[402946394,1769007639069,-500.0,0.000165,2]
[402946395,1769007639112,-150.0,0.000165,2]
[402946396,1769007639149,-550.0,0.00016501,2]
[402946398,1769007700122,500.0,0.00016315,2]
[402946399,1769007727046,999668.82938777,0.00016402,2]
[402946400,1769007727072,331.17061223,0.00016402,2]
[402946401,1769007738586,53101.53,0.00015839,2]
[402946402,1769007841718,200.0,0.00015788,2]
[402946403,1769007875995,9800.01,0.00016402,2]
[402946404,1769007876025,10000.01,0.00016402,2]
[402946405,1769007876053,10000.01,0.00016402,2]
[402946406,1769007876079,10000.01,0.00016402,2]
[402946407,1769007876107,10000.01,0.00016402,2]
[402946408,1769007876131,10000.01,0.00016402,2]
[402946409,1769007876157,10000.01,0.00016402,2]
[402946410,1769007876182,10000.01,0.00016402,2]
[402946411,1769007876208,10000.01,0.00016402,2]
[402946412,1769007876234,10000.01,0.00016402,2]
[402946413,1769007876259,900199.9,0.00016402,2]
[402946415,1769007909156,10000.01,7.945e-05,2]
[402946416,1769007909182,906.41183,7.945e-05,2]
[402946417,1769007974114,164.968212,0.00016,2]
[402946418,1769008006189,8928.629958,0.00016402,2]
[402946419,1769008006218,10000.01,0.00016402,2]
[402946420,1769008006246,10000.01,0.00016402,2]
[402946421,1769008006273,10000.01,0.00016402,2]
[402946422,1769008006303,10000.01,0.00016402,2]
[402946423,1769008006336,10000.01,0.00016402,2]
[402946424,1769008006366,10000.01,0.00016402,2]
[402946425,1769008006394,10000.01,0.00016402,2]
[402946426,1769008006421,10000.01,0.00016402,2]
[402946427,1769008006449,10000.01,0.00016402,2]
[402946428,1769008006474,154512.03304367,0.00016402,2]
[402946429,1769008006501,746559.24699833,0.00016402,2]
[402946430,1769008025045,4321.77131334,0.00016402,2]
[402946431,1769008025129,507.32904147,0.00016402,2]
[402946432,1769008026305,2048.26176511,0.00016402,2]
[402946433,1769008042510,159.52,0.00012629,2]
[402946434,1769008042714,159.52,0.00013892,2]
[402946435,1769008043076,159.52,0.00015155,2]
[402946436,1769008048641,500.0,0.000176,30]
[402946437,1769008049214,762.71508512,0.00014899,2]
[402946438,1769008134781,341.0058,0.00016327,2]
[402946439,1769008155745,9659.0042,0.00016402,2]
[402946440,1769008155777,10000.01,0.00016402,2]
[402946441,1769008155805,10000.01,0.00016402,2]
[402946442,1769008155833,10000.01,0.00016402,2]
[402946443,1769008155859,10000.01,0.00016402,2]
[402946444,1769008155887,10000.01,0.00016402,2]
[402946445,1769008155914,10000.01,0.00016402,2]
[402946446,1769008155940,10000.01,0.00016402,2]
[402946447,1769008155967,10000.01,0.00016402,2]
[402946448,1769008155992,10000.01,0.00016402,2]
[402946449,1769008156023,365140.75300167,0.00016402,2]
[402946450,1769008200812,2279.36,0.0001567,2]
[402946451,1769008201302,-300.0,0.00016401,2]
[402946452,1769008201431,-5656.88809747,0.00016402,2]
[402946453,1769008201505,-1200.0,0.00016401,2]
[402946454,1769008201556,-7600.01,0.00016402,2]
[402946455,1769008201672,-10000.01,0.00016402,2]
[402946456,1769008201771,-10000.01,0.00016402,2]
[402946457,1769008201901,-10000.01,0.00016402,2]
[402946458,1769008204925,2176.0533036,0.00016318,2]
[402946459,1769008206922,-10000.01,0.00016402,2]
[402946460,1769008207165,-10000.01,0.00016402,2]
[402946461,1769008207843,-10000.01,0.00016402,2]
[402946462,1769008208008,-10000.01,0.00016402,2]
[402946463,1769008208192,-10000.01,0.00016402,2]
[402946464,1769008217137,-156.25,0.00016392,2]
[402946465,1769008217167,-1552.75,0.00016392,2]
[402946466,1769008217273,-6582.01,0.00016402,2]
[402946467,1769008217827,-10000.01,0.00016402,2]
[402946468,1769008217969,-10000.01,0.00016402,2]
[402946469,1769008218001,-10000.01,0.00016402,2]
[402946470,1769008218121,-10000.01,0.00016402,2]
[402946471,1769008218167,-10000.01,0.00016402,2]
[402946472,1769008218208,-10000.01,0.00016402,2]
[402946473,1769008220163,-10000.01,0.00016402,2]
[402946474,1769008220382,-10000.01,0.00016402,2]
[402946475,1769008220577,-10000.01,0.00016402,2]
[402946476,1769008223197,-10000.01,0.00016402,2]
[402946477,1769008223335,-10000.01,0.00016402,2]
[402946478,1769008227759,-10000.01,0.00016402,2]
[402946479,1769008230960,-10000.01,0.00016402,2]
[402946480,1769008231029,-10000.01,0.00016402,2]
[402946481,1769008231115,-10000.01,0.00016402,2]
[402946502,1769008231507,-3595.35841812,0.00016402,2]
[402946504,1769008231544,-233813.53936672,0.00016402,2]
[402946505,1769008231555,-5455.92495635,0.00016402,2]
[402946506,1769008231568,-42496.19195967,0.00016402,2]
[402946507,1769008231578,-250.0,0.0001641,2]
[402946508,1769008231587,-159.52,0.00016418,2]
[402946509,1769008231597,-500.0,0.00016427,2]
[402946510,1769008231607,-500.0,0.00016427,2]
[402946511,1769008231616,-500.0,0.00016427,2]
[402946512,1769008231626,-500.0,0.00016427,2]
[402946513,1769008231635,-175.17782275,0.00016427,2]
[402946514,1769008231644,-165.22,0.0001644,2]
[402946515,1769008231654,-151.0,0.00016493,2]
[402946516,1769008231663,-277.21,0.000165,2]
[402946517,1769008231672,-550.0,0.00016501,2]
[402946518,1769008231682,-32928.54094061,0.00016502,2]
[402946519,1769008231716,-306.18765939,0.00016502,2]
[402946520,1769008231726,-550.33564878,0.00016502,2]
[402946521,1769008231738,-303.81320292,0.00016502,2]
[402946533,1769008231971,-145.8511483,0.00016502,2]
[402946534,1769008231980,-468.94,0.00016515,2]
[402946535,1769008231990,-1002.10968086,0.00016531,2]
[402946536,1769008231999,-13.97586267,0.00016532,2]
[402946537,1769008232010,-1783.00383733,0.00016532,2]
[402946538,1769008232020,-2500.0,0.00016532,2]
[402946539,1769008232030,-150.00335007,0.00016564,2]
[402946540,1769008232040,-22152.09294385,0.0001658,2]
[402946541,1769008232049,-500.0,0.00016603,2]
[402946542,1769008232061,-9226.45,0.00016603,2]
[402946543,1769008232070,-210.53435129,0.00016622,2]
[402946544,1769008232080,-245.9830133,0.00016622,2]
[402946545,1769008232090,-240.05478706,0.00016622,2]
[402946546,1769008232099,-500.0,0.00016622,2]
[402946547,1769008232108,-500.0,0.00016626,2]
[402946548,1769008232118,-500.0,0.00016626,2]
[402946549,1769008232128,-500.0,0.00016626,2]
[402946550,1769008232137,-500.0,0.00016626,2]
[402946551,1769008232147,-500.0,0.00016626,2]
[402946552,1769008232156,-500.0,0.00016626,2]
[402946553,1769008232165,-500.0,0.00016627,2]
[402946554,1769008232174,-500.0,0.00016627,2]
[402946555,1769008232184,-500.0,0.00016627,2]
[402946556,1769008232193,-500.0,0.00016627,2]
[402946557,1769008232202,-385.18354163,0.00016627,2]
[402946558,1769008232213,-500.0,0.00016627,2]
[402946559,1769008232226,-366.59852564,0.00016627,2]
[402946560,1769008232236,-249.28950426,0.00016627,2]
[402946561,1769008232246,-872.32,0.00016627,2]
[402946562,1769008232255,-500.0,0.00016627,2]
[402946563,1769008232265,-500.0,0.00016627,2]
[402946564,1769008232274,-500.0,0.00016627,2]
[402946565,1769008232285,-500.0,0.00016631,5]
[402946566,1769008232295,-1047.06319096,0.00016631,5]
[402946567,1769008232304,-246.0,0.00016631,2]
[402946568,1769008232315,-151533.66949022,0.00016632,2]
[402946570,1769008237517,-6855.31241897,0.00016632,2]
[402946571,1769008237526,-500.0,0.0001668,2]
[402946572,1769008237535,-500.0,0.0001668,2]
[402946573,1769008237544,-500.0,0.0001668,2]
[402946574,1769008237554,-1414.0,0.00016702,2]
[402946575,1769008237563,-166.66,0.00016725,2]
[402946576,1769008237572,-1292.0,0.00016736,2]
[402946577,1769008237582,-457.0,0.00016736,2]
[402946578,1769008237591,-618.0,0.00016736,2]
[402946579,1769008237600,-360.0,0.00016753,2]
[402946580,1769008237609,-1965.0,0.00016762,2]
[402946581,1769008237619,-1397.0,0.00016769,2]
[402946582,1769008237628,-185.0,0.0001677,2]
[402946583,1769008237637,-294.0,0.00016787,2]
[402946584,1769008237646,-727.0,0.00016792,2]
[402946585,1769008237655,-464.0,0.00016796,2]
[402946586,1769008237665,-1802.0,0.00016802,2]
[402946587,1769008237674,-181.0,0.00016803,2]
[402946588,1769008237683,-188.0,0.0001682,2]
[402946589,1769008237692,-1264.0,0.00016825,2]
[402946590,1769008237701,-569.0,0.00016836,2]
[402946591,1769008237710,-500.0,0.00016837,2]
[402946592,1769008237719,-384.0,0.00016837,2]
[402946593,1769008237728,-416.0,0.00016854,2]
[402946594,1769008237738,-1670.33862751,0.00016868,2]
[402946595,1769008237747,-645.0,0.00016869,2]
[402946596,1769008237757,-207.0,0.0001687,2]
[402946597,1769008237767,-234.0,0.00016887,2]
[402946598,1769008237777,-5191.77622724,0.00016892,2]
[402946599,1769008237786,-277.21,0.000169,2]
[402946600,1769008237795,-872.32,0.00016901,2]
[402946601,1769008237804,-290.0,0.00016902,2]
[402946602,1769008237816,-351.0,0.00016903,2]
[402946603,1769008237826,-287.0,0.00016928,2]
[402946604,1769008237835,-225.0,0.00016936,2]
[402946605,1769008237844,-326.0,0.00016937,2]
[402946606,1769008237854,-2472.78272628,0.00016943,2]
[402946619,1769008237960,-7527.21727372,0.00016943,2]
[402946621,1769008237970,-166.77063217,0.00016954,2]
[402946623,1769008237980,-500.0,0.00016954,2]
[402946625,1769008237989,-500.0,0.00016954,2]
[402946627,1769008237998,-150.0,0.00016954,2]
[402946629,1769008238007,-500.0,0.00016954,2]
[402946630,1769008238017,-500.0,0.00016954,2]
[402946632,1769008238026,-500.0,0.00016954,2]
[402946633,1769008238036,-500.0,0.00016954,2]
[402946634,1769008238045,-150.0,0.00016954,2]
[402946635,1769008238055,-150.0,0.00016954,2]
[402946636,1769008238064,-628.0,0.00016954,2]
[402946637,1769008238074,-150.0,0.00016954,2]
[402946638,1769008238083,-265.81,0.00016957,2]
[402946639,1769008238093,-1006.11733311,0.00016967,2]
[402946640,1769008238168,-12764.62834148,0.00016967,2]
[402946641,1769008238178,-1047.06319096,0.00016968,5]
[402946642,1769008238188,-18714.56131061,0.00016969,2]
[402946643,1769008238197,-1047.0,0.00016969,2]
[402946644,1769008238207,-450.0,0.0001697,2]
[402946645,1769008238217,-151.0,0.00016982,2]
[402946646,1769008238231,-151.0,0.00016987,2]
[402946647,1769008238240,-151.0,0.00016994,2]
[402946648,1769008238249,-151.0,0.00016999,2]
[402946649,1769008238260,-825.0,0.00017002,2]
[402946650,1769008238269,-151.0,0.00017007,2]
[402946651,1769008238279,-151.0,0.00017007,2]
[402946652,1769008238289,-500.0,0.00017009,2]
[402946653,1769008238299,-500.0,0.00017009,2]
[402946654,1769008238309,-500.0,0.00017009,2]
[402946655,1769008238320,-500.0,0.00017009,2]
[402946656,1769008238329,-500.0,0.00017009,2]
[402946657,1769008238339,-500.0,0.00017009,2]
[402946658,1769008238349,-150.0,0.00017009,2]
[402946659,1769008238359,-628.0,0.00017009,2]
[402946660,1769008238368,-150.0,0.00017009,2]
[402946661,1769008238379,-151.0,0.00017009,2]
[402946662,1769008238388,-4492.51657047,0.00017018,2]
[402946663,1769008238398,-151.0,0.0001702,2]
[402946664,1769008238407,-152.17,0.00017025,2]
[402946665,1769008238417,-745.0,0.00017036,2]
[402946666,1769008238426,-151.0,0.00017042,2]
[402946667,1769008238436,-500.0,0.00017043,2]
[402946668,1769008238445,-500.0,0.00017043,2]
[402946669,1769008238454,-322.6107,0.00017044,2]
[402946670,1769008238469,-533.88981491,0.00017044,2]
[402946671,1769008238490,-194.72792766,0.00017044,2]
[402946672,1769008238501,-250.0,0.00017044,2]
[402946673,1769008238510,-500.0,0.00017044,2]
[402946674,1769008238519,-250.0,0.00017044,2]
[402946675,1769008238528,-500.0,0.00017044,2]
[402946676,1769008238537,-250.0,0.00017044,2]
[402946677,1769008238547,-500.0,0.00017044,2]
[402946678,1769008238556,-250.0,0.00017044,2]
[402946679,1769008238568,-500.0,0.00017044,2]
[402946680,1769008238577,-250.0,0.00017044,2]
[402946681,1769008238587,-500.0,0.00017044,2]
[402946682,1769008238597,-151.0,0.00017044,2]
[402946683,1769008238606,-250.0,0.00017044,2]
[402946684,1769008238616,-250.0,0.00017044,2]
[402946685,1769008238626,-500.0,0.00017044,2]
[402946686,1769008238636,-250.0,0.00017044,2]
[402946687,1769008238646,-250.0,0.00017044,2]
[402946688,1769008238655,-500.0,0.00017044,2]
[402946689,1769008238665,-250.0,0.00017044,2]
[402946690,1769008238675,-500.0,0.00017044,2]
[402946691,1769008238685,-250.0,0.00017044,2]
[402946692,1769008238696,-500.0,0.00017044,2]
[402946693,1769008238705,-250.0,0.00017044,2]
[402946694,1769008238715,-500.0,0.00017044,2]
[402946695,1769008238724,-250.0,0.00017044,2]
[402946696,1769008238734,-500.0,0.00017044,2]
[402946697,1769008238743,-500.0,0.00017044,2]
[402946698,1769008238752,-500.0,0.00017044,2]
[402946699,1769008238762,-265.41911676,0.00017044,2]
[402946700,1769008238771,-250.0,0.00017044,2]
[402946701,1769008238780,-250.0,0.00017044,2]
[402946702,1769008238790,-578.20924308,0.00017044,2]
[402946703,1769008238799,-250.0,0.00017044,2]
[402946704,1769008238809,-250.0,0.00017044,2]
[402946705,1769008238820,-250.0,0.00017044,2]
[402946706,1769008238830,-174.61919141,0.00017044,2]
[402946707,1769008238840,-250.0,0.00017044,2]
[402946708,1769008238850,-290.59400585,0.00017044,2]
[402946709,1769008238860,-2000.0,0.00017044,2]
[402946710,1769008238870,-2000.0,0.00017044,2]
[402946711,1769008238879,-2000.0,0.00017044,2]
[402946712,1769008238889,-2000.0,0.00017044,2]
[402946713,1769008238899,-250.0,0.00017044,2]
[402946714,1769008238909,-2000.0,0.00017044,2]
[402946715,1769008238919,-250.0,0.00017044,2]
[402946716,1769008238929,-250.0,0.00017044,2]
[402946717,1769008238939,-280.67236905,0.00017044,2]
[402946718,1769008238949,-250.0,0.00017044,2]
[402946719,1769008238959,-151.0,0.00017044,2]
[402946720,1769008238969,-151.0,0.00017044,2]
[402946721,1769008238978,-151.0,0.00017044,2]
[402946722,1769008238988,-151.0,0.00017044,2]
[402946723,1769008238997,-151.0,0.00017044,2]
[402946724,1769008239007,-151.0,0.00017044,2]
[402946725,1769008239016,-151.0,0.00017044,2]
[402946726,1769008239026,-151.0,0.00017044,2]
[402946727,1769008239035,-151.0,0.00017044,2]
[402946728,1769008239045,-151.0,0.00017044,2]
[402946729,1769008239055,-151.0,0.00017044,2]
[402946730,1769008239064,-151.0,0.00017044,2]
[402946731,1769008239075,-151.0,0.00017044,2]
[402946732,1769008239085,-150.0,0.00017048,2]
[402946733,1769008239095,-500.0,0.00017048,2]
[402946734,1769008239104,-500.0,0.00017048,2]
[402946735,1769008239114,-500.0,0.00017048,2]
[402946736,1769008239124,-216.07295226,0.00017048,2]
[402946737,1769008239134,-150.0,0.00017048,2]
[402946738,1769008239144,-150.0,0.00017048,2]
[402946739,1769008239154,-150.65315728,0.00017048,2]
[402946740,1769008239164,-500.0,0.00017048,2]
[402946741,1769008239174,-150.0,0.00017048,2]
[402946742,1769008239184,-151.07703537,0.00017048,2]
[402946743,1769008239194,-150.0,0.00017048,2]
[402946744,1769008239204,-166.66,0.0001705,2]
[402946745,1769008239214,-55237.67093765,0.00017054,2]
[402946746,1769008239227,-500.0,0.00017064,2]
[402946747,1769008239237,-500.0,0.00017064,2]
[402946748,1769008239247,-500.0,0.00017064,2]
[402946749,1769008239256,-500.0,0.00017064,2]
[402946750,1769008239266,-500.0,0.00017064,2]
[402946751,1769008239275,-500.0,0.00017064,2]
[402946752,1769008239284,-150.0,0.00017064,2]
[402946753,1769008239294,-628.0,0.00017064,2]
[402946754,1769008239303,-200.0,0.00017064,2]
[402946755,1769008239313,-500.0,0.000171,2]
[402946756,1769008239322,-235.06380015,0.00017103,2]
[402946757,1769008239332,-500.0,0.00017103,2]
[402946758,1769008239342,-500.0,0.00017103,2]
[402946759,1769008239351,-500.0,0.00017103,2]
[402946760,1769008239361,-164.04970541,0.00017103,2]
[402946761,1769008239371,-150.0,0.00017103,2]
[402946762,1769008239380,-500.0,0.00017103,2]
[402946763,1769008239389,-150.0,0.00017103,2]
[402946764,1769008239399,-468.94,0.00017112,2]
[402946765,1769008239408,-500.0,0.00017116,2]
[402946766,1769008239418,-500.0,0.00017116,2]
[402946767,1769008239427,-500.00000001,0.00017116,2]
[402946768,1769008239437,-392.39605232,0.00017116,2]
[402946769,1769008239447,-188.2522023,0.00017116,2]
[402946770,1769008239457,-500.0,0.00017116,2]
[402946771,1769008239466,-500.0,0.00017116,2]
[402946772,1769008239475,-500.0,0.00017116,2]
[402946773,1769008239485,-161.95604531,0.00017116,2]
[402946774,1769008239494,-500.0,0.00017116,2]
[402946775,1769008239504,-500.0,0.00017116,2]
[402946776,1769008239515,-500.0,0.00017116,2]
[402946777,1769008239526,-500.0,0.00017116,2]
[402946778,1769008239538,-289.97714349,0.00017116,2]
[402946779,1769008239554,-500.0,0.00017116,2]
[402946780,1769008239571,-500.0,0.00017116,2]
[402946781,1769008239581,-500.0,0.00017116,2]
[402946782,1769008239590,-500.0,0.00017116,2]
[402946783,1769008239599,-500.0,0.00017116,2]
[402946784,1769008239609,-500.0,0.00017116,2]